fUST/lending_fUST_20240705
["ID","MTS","AMOUNT","RATE_DAILY","PERIOD"]
[331278690,1720171845620,-375.03396842,0.00054794,120]
[331278691,1720171845629,-500.0,0.00054794,120]
[331278692,1720171845643,-500.0,0.00054794,120]
[331278693,1720171845653,-500.0,0.00054794,120]
[331278694,1720171845665,-500.0,0.00054794,120]
[331278695,1720171845675,-501.81345477,0.00054794,120]
[331278696,1720171845684,-734.04,0.00054794,120]
[331278697,1720171845694,-500.0,0.00054794,120]
[331278698,1720171845704,-500.0,0.00054794,120]
[331278699,1720171845714,-2212.73,0.00054794,120]
[331278700,1720171845724,-482.13574406,0.00054794,120]
[331278703,1720171845769,-1417.23,0.00054794,120]
[331278708,1720171845779,-500.0,0.00054794,120]
[331278711,1720171845789,-500.0,0.00054794,120]
[331278714,1720171845799,-441.3816912,0.00054794,120]
[331278717,1720171845808,-501.83450842,0.00054794,120]
[331278720,1720171845818,-292.863491,0.00054794,120]
[331278723,1720171845828,-500.0,0.00054794,120]
[331278726,1720171845839,-1374.18,0.00054794,120]
[331278728,1720171845849,-500.0,0.00054794,120]
[331278730,1720171845858,-304.44703318,0.00054794,120]
[331278732,1720171845867,-1173.6,0.00054794,120]
[331278734,1720171845877,-500.0,0.00054794,30]
[331278736,1720171845887,-500.0,0.00054794,120]
[331278738,1720171845896,-1800.5,0.00054794,120]
[331278740,1720171845906,-258.10442131,0.00054794,120]
[331278742,1720171845916,-500.0,0.00054794,120]
[331278744,1720171845926,-500.0,0.00054794,120]
[331278746,1720171845936,-500.0,0.00054794,120]
[331278748,1720171845945,-504.5932476,0.00054794,120]
[331278750,1720171845955,-500.0,0.00054794,2]
[331278752,1720171845967,-23934.48,0.00054794,120]
[331278754,1720171845991,-15719.14,0.00054794,120]
[331278755,1720171846000,-500.0,0.00054794,120]
[331278756,1720171846009,-165.81268334,0.00054794,120]
[331278757,1720171846019,-9658.67,0.00054794,120]
[331278758,1720171846028,-500.0,0.00054794,120]
[331278759,1720171846040,-500.0,0.00054794,120]
[331278760,1720171846051,-500.31485602,0.00054794,120]
[331278761,1720171846061,-428.00955988,0.00054794,120]
[331278762,1720171846071,-1733.15,0.00054794,21]
[331278763,1720171846082,-521.89,0.00054794,120]
[331278764,1720171846092,-500.0,0.00054794,120]
[331278765,1720171846103,-500.0,0.00054794,120]
[331278766,1720171846112,-3162.35,0.00054794,120]
[331278767,1720171846124,-558.65,0.00054794,120]
[331278768,1720171846136,-500.0,0.00054794,120]
[331278769,1720171846145,-500.0,0.00054794,120]
[331278770,1720171846154,-504.08526284,0.00054794,120]
[331278771,1720171846165,-500.0,0.00054794,120]
[331278772,1720171846174,-500.0,0.00054794,120]
[331278773,1720171846186,-500.0,0.00054794,120]
[331278774,1720171846195,-506.19410695,0.00054794,120]
[331278775,1720171846204,-500.0,0.00054794,120]
[331278776,1720171846213,-689.46,0.00054794,120]
[331278777,1720171846222,-500.0,0.00054794,120]
[331278778,1720171846231,-1147.1,0.00054794,120]
[331278779,1720171846241,-500.0,0.00054794,120]
[331278780,1720171846251,-500.0,0.00054794,120]
[331278781,1720171846260,-500.0,0.00054794,120]
[331278782,1720171846270,-500.0,0.00054794,120]
[331278783,1720171846279,-498.1300528,0.00054794,120]
[331278784,1720171846288,-5919.32,0.00054794,120]
[331278785,1720171846298,-500.0,0.00054794,120]
[331278786,1720171846307,-500.0,0.00054794,120]
[331278787,1720171846316,-11567.19,0.00054794,120]
[331278788,1720171846326,-926.44,0.00054794,120]
[331278789,1720171846335,-500.0,0.00054794,120]
[331278790,1720171846346,-500.0,0.00054794,120]
[331278793,1720171846355,-679.52,0.00054794,120]
[331278795,1720171846365,-1500.0,0.00054795,120]
[331278797,1720171846375,-1536.0,0.00054795,120]
[331278799,1720171846386,-263.05,0.00054795,120]
[331278801,1720171846395,-53420.12262,0.0005499,6]
[331278804,1720171846405,-10000.0,0.00055,55]
[331278807,1720171846417,-10000.0,0.00055,90]
[331278810,1720171846427,-208198.0,0.00055,120]
[331278812,1720171846438,-151.0,0.00055068,120]
[331278815,1720171846447,-2000.0,0.00055242,2]
[331278818,1720171846457,-10684.024524,0.00055332,6]
[331278821,1720171846466,-500.0,0.00055342,2]
[331278824,1720171846476,-151.0,0.00055342,120]
[331278828,1720171846486,-500.0,0.00055342,120]
[331278832,1720171846496,-500.0,0.00055342,120]
[331278836,1720171846506,-500.0,0.00055342,120]
[331278840,1720171846516,-501.26044289,0.00055342,120]
[331278843,1720171846525,-151.0,0.00055342,120]
[331278845,1720171846534,-500.0,0.00055342,120]
[331278848,1720171846544,-500.0,0.00055342,120]
[331278851,1720171846555,-500.0,0.00055342,120]
[331278853,1720171846564,-500.0,0.00055342,120]
[331278856,1720171846574,-500.0,0.00055342,120]
[331278859,1720171846583,-500.0,0.00055342,120]
[331278862,1720171846593,-500.0,0.00055342,120]
[331278865,1720171846603,-151.0,0.00055342,120]
[331278868,1720171846613,-500.0,0.00055342,120]
[331278870,1720171846623,-500.0,0.00055342,120]
[331278872,1720171846633,-500.0,0.00055342,120]
[331278874,1720171846645,-151.0,0.00055342,120]
[331278876,1720171846656,-500.0,0.00055342,120]
[331278877,1720171846667,-500.0,0.00055342,120]
[331278878,1720171846677,-1185.33,0.00055342,120]
[331278879,1720171846688,-500.0,0.00055342,120]
[331278880,1720171846698,-868.32,0.00055342,120]
[331278881,1720171846708,-500.0,0.00055342,120]
[331278882,1720171846717,-510.68,0.00055342,120]
[331278883,1720171846727,-500.0,0.00055342,120]
[331278884,1720171846737,-206.369197,0.00055342,120]
[331278885,1720171846747,-500.0,0.00055342,120]
[331278886,1720171846756,-500.0,0.00055342,120]
[331278887,1720171846766,-206.369197,0.00055342,120]
[331278888,1720171846776,-500.0,0.00055342,120]
[331278889,1720171846785,-499.23167882,0.00055342,120]
[331278890,1720171846796,-151.0,0.00055342,120]
[331278891,1720171846816,-500.0,0.00055342,120]
[331278892,1720171846827,-500.0,0.00055342,120]
[331278893,1720171846837,-500.0,0.00055342,120]
[331278894,1720171846846,-500.0,0.00055342,120]
[331278895,1720171846856,-500.0,0.00055342,120]
[331278896,1720171846866,-500.0,0.00055342,120]
[331278897,1720171846876,-500.0,0.00055342,120]
[331278898,1720171846885,-500.0,0.00055342,120]
[331278899,1720171846895,-500.0,0.00055342,120]
[331278900,1720171846904,-1235.21,0.00055342,120]
[331278901,1720171846916,-500.0,0.00055342,120]
[331278902,1720171847048,-500.0,0.00055342,120]
[331278903,1720171847057,-500.0,0.00055342,120]
[331278904,1720171847067,-500.0,0.00055342,120]
[331278905,1720171847080,-500.0,0.00055342,120]
[331278906,1720171847092,-500.0,0.00055342,120]
[331278907,1720171847102,-500.0,0.00055342,120]
[331278908,1720171847129,-500.0,0.00055342,120]
[331278909,1720171847139,-500.0,0.00055342,120]
[331278910,1720171847149,-500.0,0.00055342,120]
[331278911,1720171847160,-500.0,0.00055342,120]
[331278912,1720171847170,-500.0,0.00055342,120]
[331278913,1720171847179,-3500.0,0.00055342,120]
[331278914,1720171847193,-500.0,0.00055342,120]
[331278915,1720171847203,-500.0,0.00055342,120]
[331278916,1720171847213,-500.0,0.00055342,120]
[331278917,1720171847223,-500.0,0.00055342,120]
[331278918,1720171847233,-500.0,0.00055342,120]
[331278919,1720171847243,-500.0,0.00055342,22]
[331278920,1720171847252,-1561.76,0.00055342,120]
[331278921,1720171847263,-4322.73,0.00055342,120]
[331278922,1720171847273,-500.0,0.00055342,120]
[331278923,1720171847282,-500.0,0.00055342,120]
[331278924,1720171847292,-500.0,0.00055342,120]
[331278925,1720171847302,-500.0,0.00055342,120]
[331278926,1720171847311,-500.0,0.00055342,120]
[331278927,1720171847321,-500.0,0.00055342,120]
[331278928,1720171847334,-500.0,0.00055342,120]
[331278929,1720171847348,-500.0,0.00055342,120]
[331278930,1720171847359,-500.0,0.00055342,120]
[331278931,1720171847368,-500.0,0.00055342,120]
[331278932,1720171847378,-500.0,0.00055342,120]
[331278933,1720171847388,-515.52440905,0.00055342,120]
[331278934,1720171847398,-500.0,0.00055342,120]
[331278935,1720171847407,-500.0,0.00055342,120]
[331278936,1720171847419,-500.0,0.00055342,120]
[331278937,1720171847429,-500.0,0.00055342,120]
[331278938,1720171847438,-505.8251321,0.00055342,120]
[331278939,1720171847447,-500.0,0.00055342,120]
[331278940,1720171847456,-859.92,0.00055342,120]
[331278941,1720171847465,-209.83221673,0.00055342,120]
[331278942,1720171847474,-500.0,0.00055342,120]
[331278943,1720171847484,-454.08706428,0.00055342,120]
[331278944,1720171847493,-500.0,0.00055342,120]
[331278945,1720171847502,-500.0,0.00055342,120]
[331278946,1720171847511,-500.0,0.00055342,120]
[331278947,1720171847520,-500.0,0.00055342,120]
[331278948,1720171847529,-734.04,0.00055342,120]
[331278949,1720171847538,-500.0,0.00055342,120]
[331278950,1720171847549,-500.0,0.00055342,120]
[331278951,1720171847560,-2212.73,0.00055342,120]
[331278952,1720171847583,-1417.23,0.00055342,120]
[331278953,1720171847594,-500.0,0.00055342,120]
[331278954,1720171847604,-500.0,0.00055342,120]
[331278955,1720171847614,-500.0,0.00055342,120]
[331278956,1720171847629,-500.0,0.00055342,120]
[331278957,1720171847639,-1374.18,0.00055342,120]
[331278958,1720171847651,-500.0,0.00055342,30]
[331278959,1720171847665,-1173.6,0.00055342,120]
[331278960,1720171847674,-1800.5,0.00055342,120]
[331278961,1720171847683,-500.0,0.00055342,120]
[331278962,1720171847693,-500.0,0.00055342,120]
[331278963,1720171847701,-500.0,0.00055342,120]
[331278964,1720171847711,-500.62278699,0.00055342,120]
[331278965,1720171847720,-500.0,0.00055342,2]
[331278966,1720171847729,-23934.48,0.00055342,120]
[331278967,1720171847738,-500.0,0.00055342,120]
[331278968,1720171847747,-15719.14,0.00055342,120]
[331278969,1720171847756,-9658.67,0.00055342,120]
[331278970,1720171847765,-500.0,0.00055342,120]
[331278971,1720171847775,-500.0,0.00055342,120]
[331278972,1720171847784,-1733.15,0.00055342,21]
[331278973,1720171847793,-521.89,0.00055342,120]
[331278974,1720171847803,-500.0,0.00055342,120]
[331278975,1720171847813,-500.0,0.00055342,120]
[331278976,1720171847823,-3162.35,0.00055342,120]
[331278977,1720171847833,-558.65,0.00055342,120]
[331278978,1720171847843,-500.0,0.00055342,120]
[331278979,1720171847853,-500.0,0.00055342,120]
[331278980,1720171847862,-500.0,0.00055342,120]
[331278981,1720171847872,-500.0,0.00055342,120]
[331278982,1720171847881,-500.0,0.00055342,120]
[331278983,1720171847892,-689.46,0.00055342,120]
[331278984,1720171847902,-1147.1,0.00055342,120]
[331278985,1720171847915,-500.0,0.00055342,120]
[331278986,1720171847926,-500.0,0.00055342,120]
[331278987,1720171847936,-5919.32,0.00055342,120]
[331278988,1720171847946,-500.0,0.00055342,120]
[331278989,1720171847956,-11567.19,0.00055342,120]
[331278990,1720171847965,-926.44,0.00055342,120]
[331278991,1720171847975,-500.0,0.00055342,120]
[331278992,1720171847985,-500.0,0.00055342,120]
[331278993,1720171847994,-178.149452,0.00055575,30]
[331278994,1720171848003,-153.6671116,0.00055616,2]
[331278995,1720171848013,-153.0,0.00055616,2]
[331278996,1720171848022,-150.348361,0.00055652,120]
[331278997,1720171848032,-300.0,0.00055753,30]
[331278998,1720171848045,-500.0,0.000558,120]
[331278999,1720171848054,-301.34616125,0.00055804,30]
[331279000,1720171848064,-300.0,0.00055882,30]
[331279001,1720171848074,-500.0,0.0005589,2]
[331279002,1720171848085,-500.0,0.0005589,120]
[331279003,1720171848095,-500.0,0.0005589,120]
[331279004,1720171848104,-179.31819543,0.0005589,120]
[331279005,1720171848115,-500.0,0.0005589,120]
[331279006,1720171848132,-500.0,0.0005589,120]
[331279007,1720171848142,-531.51,0.0005589,120]
[331279008,1720171848152,-515.96953941,0.0005589,120]
[331279009,1720171848163,-510.32976558,0.0005589,120]
[331279010,1720171848172,-500.0,0.0005589,120]
[331279011,1720171848181,-546.77,0.0005589,120]
[331279012,1720171848191,-500.0,0.0005589,120]
[331279013,1720171848201,-504.41982607,0.0005589,120]
[331279014,1720171848210,-151.0,0.0005589,14]
[331279015,1720171848220,-500.0,0.0005589,120]
[331279016,1720171848229,-500.0,0.0005589,120]
[331279017,1720171848239,-500.0,0.0005589,120]
[331279018,1720171848249,-500.0,0.0005589,120]
[331279019,1720171848258,-509.77269587,0.0005589,120]
[331279020,1720171848268,-712.53,0.0005589,120]
[331279021,1720171848277,-500.0,0.0005589,60]
[331279022,1720171848286,-500.0,0.0005589,120]
[331279023,1720171848296,-1246.59,0.0005589,120]
[331279024,1720171848305,-500.0,0.0005589,120]
[331279025,1720171848314,-932.96,0.0005589,120]
[331279026,1720171848324,-500.0,0.0005589,120]
[331279027,1720171848333,-500.0,0.0005589,120]
[331279028,1720171848343,-500.0,0.0005589,120]
[331279029,1720171848352,-500.0,0.0005589,120]
[331279030,1720171848361,-500.0,0.0005589,120]
[331279031,1720171848370,-500.0,0.0005589,120]
[331279032,1720171848379,-544.12841864,0.0005589,120]
[331279033,1720171848389,-500.0,0.0005589,120]
[331279034,1720171848398,-796.36,0.0005589,120]
[331279035,1720171848407,-500.0,0.0005589,120]
[331279036,1720171848418,-500.0,0.0005589,120]
[331279037,1720171848427,-940.66,0.0005589,120]
[331279038,1720171848437,-236.16508,0.0005589,120]
[331279039,1720171848446,-500.0,0.0005589,120]
[331279040,1720171848455,-500.0,0.0005589,120]
[331279041,1720171848464,-500.0,0.0005589,120]
[331279042,1720171848473,-500.0,0.0005589,120]
[331279043,1720171848484,-151.0,0.0005589,120]
[331279044,1720171848496,-500.0,0.0005589,120]
[331279045,1720171848505,-151.0,0.0005589,120]
[331279046,1720171848515,-1185.33,0.0005589,120]
[331279047,1720171848525,-500.0,0.0005589,120]
[331279048,1720171848535,-868.32,0.0005589,120]
[331279049,1720171848544,-500.0,0.0005589,120]
[331279050,1720171848554,-510.68,0.0005589,120]
[331279051,1720171848565,-206.369197,0.0005589,120]
[331279052,1720171848575,-500.0,0.0005589,120]
[331279053,1720171848585,-500.0,0.0005589,120]
[331279054,1720171848595,-206.369197,0.0005589,120]
[331279055,1720171848604,-500.0,0.0005589,120]
[331279056,1720171848614,-500.0,0.0005589,120]
[331279057,1720171848624,-500.0,0.0005589,120]
[331279058,1720171848635,-500.0,0.0005589,120]
[331279059,1720171848647,-500.0,0.0005589,120]
[331279060,1720171848657,-524.01345237,0.0005589,120]
[331279061,1720171848668,-500.0,0.0005589,120]
[331279062,1720171848677,-500.0,0.0005589,120]
[331279063,1720171848686,-1235.21,0.0005589,120]
[331279064,1720171848695,-500.0,0.0005589,120]
[331279065,1720171848705,-500.0,0.0005589,120]
[331279066,1720171848715,-500.0,0.0005589,120]
[331279067,1720171848724,-500.0,0.0005589,120]
[331279068,1720171848735,-500.0,0.0005589,120]
[331279069,1720171848749,-500.0,0.0005589,120]
[331279070,1720171848759,-500.0,0.0005589,120]
[331279071,1720171848768,-844.26,0.0005589,120]
[331279072,1720171848778,-500.0,0.0005589,120]
[331279073,1720171848788,-500.0,0.0005589,120]
[331279074,1720171848797,-500.0,0.0005589,120]
[331279075,1720171848807,-500.0,0.0005589,120]
[331279076,1720171848817,-500.0,0.0005589,120]
[331279077,1720171848826,-500.0,0.0005589,22]
[331279078,1720171848836,-1561.76,0.0005589,120]
[331279080,1720171848845,-4322.73,0.0005589,120]
[331279082,1720171848855,-500.0,0.0005589,120]
[331279084,1720171848864,-500.0,0.0005589,120]
[331279086,1720171848873,-500.0,0.0005589,120]
[331279088,1720171848883,-275.65879197,0.0005589,120]
[331279090,1720171848892,-500.0,0.0005589,120]
[331279091,1720171848902,-500.0,0.0005589,120]
[331279092,1720171848913,-500.0,0.0005589,120]
[331279093,1720171848923,-318.69208428,0.0005589,120]
[331279094,1720171848932,-500.0,0.0005589,120]
[331279095,1720171848942,-324.82950934,0.0005589,3]
[331279096,1720171848953,-500.0,0.0005589,120]
[331279097,1720171848971,-421.63800581,0.0005589,120]
[331279098,1720171848981,-500.0,0.0005589,120]
[331279099,1720171848991,-500.0,0.0005589,120]
[331279100,1720171849001,-6407.59250038,0.0005589,4]
[331279101,1720171849010,-500.0,0.0005589,120]
[331279102,1720171849020,-859.92,0.0005589,120]
[331279103,1720171849030,-657.1304449,0.0005589,4]
[331279104,1720171849044,-500.0,0.0005589,120]
[331279105,1720171849053,-500.0,0.0005589,120]
[331279106,1720171849063,-500.0,0.0005589,120]
[331279107,1720171849072,-500.0,0.0005589,120]
[331279108,1720171849082,-500.0,0.0005589,120]
[331279109,1720171849091,-734.04,0.0005589,120]
[331279110,1720171849101,-500.0,0.0005589,120]
[331279111,1720171849110,-500.0,0.0005589,120]
[331279112,1720171849123,-2212.73,0.0005589,120]
[331279113,1720171849133,-1417.23,0.0005589,120]
[331279114,1720171849143,-500.0,0.0005589,120]
[331279115,1720171849152,-500.0,0.0005589,120]
[331279116,1720171849165,-500.0,0.0005589,120]
[331279117,1720171849174,-500.0,0.0005589,120]
[331279118,1720171849183,-1374.18,0.0005589,120]
[331279119,1720171849193,-1800.5,0.0005589,120]
[331279120,1720171849202,-500.0,0.0005589,120]
[331279121,1720171849216,-1173.6,0.0005589,120]
[331279122,1720171849225,-500.0,0.0005589,120]
[331279123,1720171849234,-500.0,0.0005589,120]
[331279124,1720171849248,-500.0,0.0005589,2]
[331279125,1720171849265,-500.0,0.0005589,120]
[331279126,1720171849275,-15719.14,0.0005589,120]
[331279127,1720171849285,-23934.48,0.0005589,120]
[331279128,1720171849294,-500.0,0.0005589,120]
[331279129,1720171849304,-9658.67,0.0005589,120]
[331279130,1720171849314,-641.92139059,0.0005589,120]
[331279131,1720171849323,-1733.15,0.0005589,21]
[331279132,1720171849333,-521.89,0.0005589,120]
[331279133,1720171849343,-500.0,0.0005589,120]
[331279134,1720171849352,-602.72424353,0.0005589,120]
[331279135,1720171849362,-500.0,0.0005589,120]
[331279136,1720171849372,-3162.35,0.0005589,120]
[331279137,1720171849382,-558.65,0.0005589,120]
[331279138,1720171849392,-500.0,0.0005589,120]
[331279139,1720171849403,-500.0,0.0005589,120]
[331279140,1720171849416,-500.0,0.0005589,120]
[331279141,1720171849425,-500.0,0.0005589,120]
[331279142,1720171849434,-689.46,0.0005589,120]
[331279143,1720171849444,-1147.1,0.0005589,120]
[331279144,1720171849453,-500.0,0.0005589,120]
[331279145,1720171849463,-404.95184244,0.0005589,120]
[331279146,1720171849472,-5919.32,0.0005589,120]
[331279147,1720171849482,-500.0,0.0005589,120]
[331279148,1720171849492,-11567.19,0.0005589,120]
[331279149,1720171849501,-926.44,0.0005589,120]
[331279150,1720171849511,-500.0,0.0005589,120]
[331279151,1720171849520,-153.0,0.0005589,2]
[331279152,1720171849541,-206.1408591,0.0005589,60]
[331279153,1720171849550,-154.2187865,0.0005589,60]
[331279154,1720171849560,-153.0,0.0005589,2]
[331279155,1720171849570,-153.0,0.0005589,60]
[331279156,1720171849580,-206.1408591,0.0005589,60]
[331279157,1720171849590,-296.0,0.0005597,62]
[331279158,1720171849600,-422.0,0.0005597,62]
[331279159,1720171849610,-422.0,0.0005598,62]
[331279160,1720171849620,-150.5,0.0005598,62]
[331279161,1720171849631,-292.78,0.0005599,62]
[331279162,1720171849643,-150.5,0.0005599,62]
[331279163,1720171849654,-422.0,0.0005599,62]
[331279164,1720171849665,-10000.0,0.00056,56]
[331279165,1720171849690,-1000.0,0.00056,120]
[331279166,1720171849708,-1000.0,0.00056,120]
[331279167,1720171849718,-1000.0,0.00056,120]
[331279168,1720171849727,-1000.0,0.00056,120]
[331279169,1720171849738,-1000.0,0.00056,120]
[331279170,1720171849748,-1000.0,0.00056,120]
[331279171,1720171849758,-1000.0,0.00056,120]
[331279172,1720171849768,-1000.0,0.00056,120]
[331279173,1720171849777,-1000.0,0.00056,120]
[331279174,1720171849787,-1000.0,0.00056,120]
[331279175,1720171849796,-1000.0,0.00056,120]
[331279176,1720171849806,-500.0,0.00056438,120]
[331279177,1720171849816,-202.74511069,0.00056438,120]
[331279178,1720171849826,-500.0,0.00056438,120]
[331279179,1720171849835,-500.0,0.00056438,14]
[331279180,1720171849844,-500.0,0.00056438,120]
[331279181,1720171849854,-504.01735712,0.00056438,120]
[331279182,1720171849863,-446.02590922,0.00056438,120]
[331279183,1720171849873,-173.60896826,0.00056438,20]
[331279184,1720171849884,-500.0,0.00056438,120]
[331279185,1720171849894,-500.0,0.00056438,120]
[331279186,1720171849903,-500.0,0.00056438,120]
[331279187,1720171849916,-500.0,0.00056438,120]
[331279188,1720171849925,-500.0,0.00056438,120]
[331279189,1720171849935,-200.0,0.00056438,7]
[331279190,1720171849945,-500.0,0.00056438,120]
[331279191,1720171849954,-500.0,0.00056438,120]
[331279192,1720171849963,-500.0,0.00056438,120]
[331279193,1720171849972,-500.0,0.00056438,120]
[331279194,1720171849982,-500.0,0.00056438,120]
[331279195,1720171849991,-500.0,0.00056438,120]
[331279196,1720171850002,-500.0,0.00056438,120]
[331279197,1720171850011,-501.46394191,0.00056438,120]
[331279198,1720171850021,-500.0,0.00056438,120]
[331279199,1720171850030,-500.0,0.00056438,120]
[331279200,1720171850041,-503.67792521,0.00056438,120]
[331279201,1720171850052,-572.03588377,0.00056438,120]
[331279202,1720171850062,-500.0,0.00056438,120]
[331279203,1720171850071,-882.16,0.00056438,120]
[331279204,1720171850081,-500.0,0.00056438,120]
[331279205,1720171850091,-500.0,0.00056438,120]
[331279206,1720171850101,-500.0,0.00056438,120]
[331279207,1720171850111,-500.0,0.00056438,120]
[331279208,1720171850122,-500.0,0.00056438,120]
[331279209,1720171850132,-500.0,0.00056438,120]
[331279210,1720171850145,-500.0,0.00056438,120]
[331279211,1720171850163,-500.0,0.00056438,120]
[331279212,1720171850176,-151.0,0.00056438,120]
[331279213,1720171850186,-151.0,0.00056438,120]
[331279214,1720171850199,-310.0,0.00056438,30]
[331279215,1720171850209,-310.0,0.00056438,30]
[331279216,1720171850219,-310.0,0.00056438,30]
[331279217,1720171850229,-310.0,0.00056438,30]
[331279218,1720171850238,-500.0,0.00056438,120]
[331279219,1720171850248,-446.822796,0.00056438,30]
[331279220,1720171850258,-500.0,0.00056438,120]
[331279221,1720171850267,-1859.97,0.00056438,120]
[331279222,1720171850277,-685.0,0.00056438,120]
[331279223,1720171850286,-270.35502847,0.00056438,120]
[331279224,1720171850296,-500.0,0.00056438,120]
[331279225,1720171850305,-500.0,0.00056438,120]
[331279226,1720171850315,-500.0,0.00056438,120]
[331279227,1720171850324,-500.0,0.00056438,120]
[331279228,1720171850334,-511.01010008,0.00056438,120]
[331279229,1720171850343,-500.0,0.00056438,2]
[331279230,1720171850353,-500.0,0.00056438,120]
[331279231,1720171850363,-997.01,0.00056438,120]
[331279232,1720171850372,-500.0,0.00056438,120]
[331279233,1720171850382,-500.0,0.00056438,120]
[331279234,1720171850391,-500.0,0.00056438,120]
[331279235,1720171850401,-500.0,0.00056438,120]
[331279236,1720171850415,-500.0,0.00056438,120]
[331279237,1720171850424,-500.0,0.00056438,120]
[331279238,1720171850433,-1066.68,0.00056438,120]
[331279239,1720171850542,-693.3,0.00056438,120]
[331279240,1720171850575,-500.0,0.00056438,120]
[331279241,1720171850593,-500.0,0.00056438,120]
[331279242,1720171850604,-1549.3,0.00056438,120]
[331279243,1720171850615,-500.0,0.00056438,120]
[331279244,1720171850627,-500.0,0.00056438,120]
[331279245,1720171850637,-1365.1,0.00056438,120]
[331279246,1720171850651,-500.0,0.00056438,120]
[331279247,1720171850666,-500.0,0.00056438,120]
[331279248,1720171850675,-500.0,0.00056438,120]
[331279249,1720171850685,-500.0,0.00056438,120]
[331279250,1720171850696,-760.23,0.00056438,120]
[331279251,1720171850705,-500.0,0.00056438,120]
[331279252,1720171850714,-500.0,0.00056438,120]
[331279253,1720171850724,-500.0,0.00056438,120]
[331279254,1720171850733,-531.51,0.00056438,120]
[331279255,1720171850743,-546.77,0.00056438,120]
[331279256,1720171850753,-500.0,0.00056438,120]
[331279257,1720171850763,-500.0,0.00056438,120]
[331279258,1720171850773,-500.0,0.00056438,120]
[331279259,1720171850783,-500.0,0.00056438,120]
[331279260,1720171850792,-500.0,0.00056438,120]
[331279261,1720171850802,-712.53,0.00056438,120]
[331279262,1720171850815,-500.0,0.00056438,120]
[331279263,1720171850824,-500.0,0.00056438,60]
[331279264,1720171850834,-1246.59,0.00056438,120]
[331279265,1720171850843,-500.0,0.00056438,120]
[331279266,1720171850853,-932.96,0.00056438,120]
[331279267,1720171850862,-500.0,0.00056438,120]
[331279268,1720171850872,-500.0,0.00056438,120]
[331279269,1720171850882,-500.0,0.00056438,120]
[331279270,1720171850891,-500.0,0.00056438,120]
[331279271,1720171850900,-500.0,0.00056438,120]
[331279272,1720171850915,-500.0,0.00056438,120]
[331279273,1720171850925,-796.36,0.00056438,120]
[331279274,1720171850934,-500.0,0.00056438,120]
[331279275,1720171850943,-940.66,0.00056438,120]
[331279276,1720171850952,-500.0,0.00056438,120]
[331279277,1720171850961,-500.0,0.00056438,120]
[331279278,1720171850971,-151.0,0.00056438,120]
[331279279,1720171850981,-500.0,0.00056438,120]
[331279280,1720171850990,-1185.33,0.00056438,120]
[331279281,1720171851000,-529.87353148,0.00056438,120]
[331279282,1720171851009,-868.32,0.00056438,120]